fUSD/lending_fUSD_20260616
["ID","MTS","AMOUNT","RATE_DAILY","PERIOD"]
[425222894,1781624629000,1436.93,0.00029452,120]
[425222895,1781624652000,-2500.0,8.786e-05,2]
[425222898,1781624652000,-300.0,8.835e-05,2]
[425222899,1781624652000,-123.86551845,8.865e-05,2]
[425222897,1781624652000,-160.0,8.792e-05,2]
[425222896,1781624652000,-216.13448155,8.79e-05,2]
[425222900,1781624678000,-176.13448155,8.865e-05,2]
[425222901,1781624699000,-500.0,8.881e-05,2]
[425222904,1781624699000,-175.00269463,8.881e-05,2]
[425222903,1781624699000,-179.66273783,8.881e-05,2]
[425222902,1781624699000,-213.12812553,8.881e-05,2]
[425222907,1781624699000,-182.02252639,8.881e-05,2]
[425222906,1781624699000,-500.0,8.881e-05,2]
[425222908,1781624699000,-500.0,8.881e-05,2]
[425222909,1781624699000,-500.0,8.881e-05,2]
[425222905,1781624699000,-500.0,8.881e-05,2]
[425222920,1781624700000,-500.0,8.881e-05,2]
[425222925,1781624700000,-500.0,8.881e-05,2]
[425222922,1781624700000,-500.0,8.881e-05,2]
[425222919,1781624700000,-500.0,8.881e-05,2]
[425222921,1781624700000,-500.0,8.881e-05,2]
[425222918,1781624700000,-500.0,8.881e-05,2]
[425222911,1781624700000,-500.0,8.881e-05,2]
[425222915,1781624700000,-500.0,8.881e-05,2]
[425222914,1781624700000,-500.0,8.881e-05,2]
[425222913,1781624700000,-500.0,8.881e-05,2]
[425222912,1781624700000,-500.0,8.881e-05,2]
[425222926,1781624700000,-500.0,8.881e-05,2]
[425222910,1781624700000,-500.0,8.881e-05,2]
[425222916,1781624700000,-500.0,8.881e-05,2]
[425222924,1781624700000,-500.0,8.881e-05,2]
[425222917,1781624700000,-500.0,8.881e-05,2]
[425222927,1781624700000,-500.0,8.881e-05,2]
[425222941,1781624700000,-500.0,8.881e-05,2]
[425222938,1781624700000,-500.0,8.881e-05,2]
[425222939,1781624700000,-500.0,8.881e-05,2]
[425222923,1781624700000,-500.0,8.881e-05,2]
[425222937,1781624700000,-500.0,8.881e-05,2]
[425222935,1781624700000,-500.0,8.881e-05,2]
[425222942,1781624700000,-285.8867271,8.881e-05,2]
[425222940,1781624700000,-500.0,8.881e-05,2]
[425222934,1781624700000,-500.0,8.881e-05,2]
[425222932,1781624700000,-500.0,8.881e-05,2]
[425222931,1781624700000,-289.29718852,8.881e-05,2]
[425222933,1781624700000,-500.0,8.881e-05,2]
[425222930,1781624700000,-500.0,8.881e-05,2]
[425222928,1781624700000,-500.0,8.881e-05,2]
[425222929,1781624700000,-500.0,8.881e-05,2]
[425222936,1781624700000,-500.0,8.881e-05,2]
[425222943,1781624827000,-2500.0,8.786e-05,2]
[425222944,1781624828000,582.9627293,0.00030136,120]
[425222946,1781624924000,-1885.54162512,8.782e-05,2]
[425222947,1781624924000,-2249.9342521,8.782e-05,2]
[425222945,1781624924000,-500.0,8.686e-05,2]
[425222948,1781624975000,-500.0,8.781e-05,2]
[425222953,1781625032000,-349.90206,8.781e-05,2]
[425222956,1781625032000,-500.0,8.781e-05,2]
[425222957,1781625032000,-349.18968787,8.781e-05,2]
[425222954,1781625032000,-150.09794,8.781e-05,2]
[425222958,1781625032000,-1455.44027312,8.782e-05,2]
[425222955,1781625032000,-177.41576847,8.781e-05,2]
[425223028,1781625039000,-203.20490408,8.78e-05,2]
[425223027,1781625039000,-199.06021358,8.78e-05,2]
[425223020,1781625039000,-300.93978642,8.78e-05,2]
[425223019,1781625039000,-500.0,8.78e-05,2]
[425223039,1781625040000,-618.69413754,8.78e-05,2]
[425223040,1781625040000,-500.0,8.78e-05,2]
[425223038,1781625040000,-500.0,8.78e-05,2]
[425223035,1781625040000,-500.0,8.78e-05,2]
[425223033,1781625040000,-177.62549567,8.78e-05,2]
[425223037,1781625040000,-500.0,8.78e-05,2]
[425223031,1781625040000,-296.79509592,8.78e-05,2]
[425223034,1781625040000,-500.0,8.78e-05,2]
[425223032,1781625040000,-322.37450433,8.78e-05,2]
[425223029,1781625040000,-296.79509592,8.78e-05,2]
[425223030,1781625040000,-203.20490408,8.78e-05,2]
[425223044,1781625040000,-500.0,8.78e-05,2]
[425223036,1781625040000,-500.0,8.78e-05,2]
[425223054,1781625040000,-256.33554005,8.78e-05,2]
[425223042,1781625040000,-500.0,8.78e-05,2]
[425223050,1781625040000,-55.78235337,8.78e-05,2]
[425223118,1781625040000,-2500.0,8.786e-05,2]
[425223116,1781625040000,-13819.2299621,8.782e-05,2]
[425223120,1781625040000,-2525.16208284,8.786e-05,2]
[425223075,1781625040000,-356.95858756,8.782e-05,2]
[425223069,1781625040000,-337.67489231,8.78e-05,2]
[425223065,1781625040000,-500.0,8.78e-05,2]
[425223067,1781625040000,-500.0,8.78e-05,2]
[425223073,1781625040000,-162.32510769,8.78e-05,2]
[425223063,1781625040000,-500.0,8.78e-05,2]
[425223052,1781625040000,-243.66445995,8.78e-05,2]
[425223046,1781625040000,-321.63166447,8.78e-05,2]
[425223059,1781625040000,-500.0,8.78e-05,2]
[425223048,1781625040000,-444.21764663,8.78e-05,2]
[425223056,1781625040000,-500.0,8.78e-05,2]
[425223061,1781625040000,-500.0,8.78e-05,2]
[425223155,1781625042000,-1001.25495256,8.885e-05,2]
[425223154,1781625042000,-14551.19662409,8.786e-05,2]
[425223153,1781625042000,-1482923.64129307,8.786e-05,2]
[425223158,1781625042000,-160.0,8.891e-05,2]
[425223156,1781625042000,-1301.506,8.885e-05,2]
[425223157,1781625042000,-150.0,8.885e-05,2]
[425223160,1781625042000,-300.0,9.555e-05,2]
[425223159,1781625042000,-160.0,9.019e-05,2]
[425223161,1781625042000,-774.30738054,9.665e-05,2]
[425223204,1781625043000,-151.0,0.00012,2]
[425223202,1781625043000,-166.66,0.00011963,2]
[425223210,1781625043000,-150.0,0.00012225,2]
[425223192,1781625043000,-216.19841815,0.00011503,2]
[425223198,1781625043000,-166.66,0.00011763,2]
[425223208,1781625043000,-150.0,0.00012225,2]
[425223199,1781625043000,-736.0,0.00011826,2]
[425223193,1781625043000,-150.0,0.00011544,2]
[425223195,1781625043000,-3581.43,0.00011612,2]
[425223196,1781625043000,-237.11,0.00011654,2]
[425223197,1781625043000,-251.99,0.00011654,2]
[425223209,1781625043000,-150.0,0.00012225,2]
[425223200,1781625043000,-151.0,0.00011848,2]
[425223213,1781625043000,-500.0,0.00012236,2]
[425223207,1781625043000,-274.36,0.00012212,2]
[425223205,1781625043000,-151.0,0.00012,2]
[425223206,1781625043000,-151.0,0.00012,2]
[425223201,1781625043000,-710.39066907,0.00011955,2]
[425223211,1781625043000,-289.02682173,0.00012225,2]
[425223212,1781625043000,-500.0,0.00012236,2]
[425223215,1781625043000,-500.0,0.00012236,2]
[425223217,1781625043000,-500.0,0.00012236,2]
[425223214,1781625043000,-500.0,0.00012236,2]
[425223216,1781625043000,-500.0,0.00012236,2]
[425223194,1781625043000,-166.66,0.00011562,2]
[425223219,1781625043000,-500.0,0.00012236,2]
[425223221,1781625043000,-500.0,0.00012236,2]
[425223203,1781625043000,-151.0,0.00012,2]
[425223187,1781625043000,-166.66,0.0001116,2]
[425223178,1781625043000,-166.66,0.00010959,2]
[425223188,1781625043000,-1000.0,0.00011309,2]
[425223222,1781625043000,-500.0,0.00012236,2]
[425223162,1781625043000,-250.0,9.665e-05,2]
[425223164,1781625043000,-250.0,9.983e-05,2]
[425223163,1781625043000,-255.0,9.774e-05,2]
[425223167,1781625043000,-2682.0600411,0.000104,2]
[425223168,1781625043000,-433.0,0.00010751,2]
[425223172,1781625043000,-1228.0,0.00010761,2]
[425223169,1781625043000,-3558.0,0.00010761,2]
[425223165,1781625043000,-251.05228352,0.0001,2]
[425223170,1781625043000,-1359.0,0.00010761,2]
[425223173,1781625043000,-383.0,0.00010761,2]
[425223166,1781625043000,-1745.0,0.000101,2]
[425223171,1781625043000,-1275.0,0.00010761,2]
[425223175,1781625043000,-3646.0,0.00010761,2]
[425223185,1781625043000,-298.05,0.0001111,2]
[425223176,1781625043000,-257.23780456,0.00010831,2]
[425223181,1781625043000,-216.19841817,0.00011099,2]
[425223174,1781625043000,-941.204,0.00010761,2]
[425223183,1781625043000,-216.19841815,0.00011099,2]
[425223179,1781625043000,-423.95,0.00011,2]
[425223184,1781625043000,-216.19841815,0.00011099,2]
[425223180,1781625043000,-431.1,0.00011067,2]
[425223182,1781625043000,-216.19841815,0.00011099,2]
[425223177,1781625043000,-250.0,0.00010848,2]
[425223186,1781625043000,-150.0,0.00011153,2]
[425223191,1781625043000,-166.66,0.00011361,2]
[425223190,1781625043000,-155.0,0.00011333,5]
[425223189,1781625043000,-150.0,0.00011333,5]
[425223218,1781625043000,-500.0,0.00012236,2]
[425223236,1781625043000,-500.0,0.00012236,2]
[425223224,1781625043000,-500.0,0.00012236,2]
[425223278,1781625043000,-500.0,0.00012236,2]
[425223262,1781625043000,-500.0,0.00012236,2]
[425223266,1781625043000,-500.0,0.00012236,2]
[425223264,1781625043000,-500.0,0.00012236,2]
[425223268,1781625043000,-500.0,0.00012236,2]
[425223270,1781625043000,-500.0,0.00012236,2]
[425223280,1781625043000,-500.0,0.00012236,2]
[425223291,1781625043000,-500.0,0.00012236,2]
[425223284,1781625043000,-500.0,0.00012236,2]
[425223286,1781625043000,-500.0,0.00012236,2]
[425223293,1781625043000,-500.0,0.00012236,2]
[425223289,1781625043000,-500.0,0.00012236,2]
[425223282,1781625043000,-500.0,0.00012236,2]
[425223276,1781625043000,-500.0,0.00012236,2]
[425223295,1781625043000,-500.0,0.00012236,2]
[425223301,1781625043000,-500.0,0.00012236,2]
[425223299,1781625043000,-500.0,0.00012236,2]
[425223305,1781625043000,-500.0,0.00012236,2]
[425223310,1781625043000,-500.0,0.00012236,2]
[425223308,1781625043000,-500.0,0.00012236,2]
[425223304,1781625043000,-500.0,0.00012236,2]
[425223314,1781625043000,-500.0,0.00012236,2]
[425223312,1781625043000,-500.0,0.00012236,2]
[425223315,1781625043000,-500.0,0.00012236,2]
[425223220,1781625043000,-500.0,0.00012236,2]
[425223316,1781625043000,-500.0,0.00012236,2]
[425223319,1781625043000,-500.0,0.00012236,2]
[425223317,1781625043000,-500.0,0.00012236,2]
[425223297,1781625043000,-500.0,0.00012236,2]
[425223274,1781625043000,-500.0,0.00012236,2]
[425223318,1781625043000,-500.0,0.00012236,2]
[425223261,1781625043000,-500.0,0.00012236,2]
[425223272,1781625043000,-500.0,0.00012236,2]
[425223223,1781625043000,-500.0,0.00012236,2]
[425223233,1781625043000,-500.0,0.00012236,2]
[425223235,1781625043000,-500.0,0.00012236,2]
[425223234,1781625043000,-500.0,0.00012236,2]
[425223227,1781625043000,-500.0,0.00012236,2]
[425223229,1781625043000,-500.0,0.00012236,2]
[425223225,1781625043000,-500.0,0.00012236,2]
[425223228,1781625043000,-500.0,0.00012236,2]
[425223231,1781625043000,-500.0,0.00012236,2]
[425223232,1781625043000,-500.0,0.00012236,2]
[425223230,1781625043000,-500.0,0.00012236,2]
[425223237,1781625043000,-500.0,0.00012236,2]
[425223246,1781625043000,-500.0,0.00012236,2]
[425223226,1781625043000,-500.0,0.00012236,2]
[425223238,1781625043000,-500.0,0.00012236,2]
[425223239,1781625043000,-860.0,0.00012236,2]
[425223260,1781625043000,-500.0,0.00012236,2]
[425223257,1781625043000,-500.0,0.00012236,2]
[425223255,1781625043000,-500.0,0.00012236,2]
[425223253,1781625043000,-500.0,0.00012236,2]
[425223251,1781625043000,-500.0,0.00012236,2]
[425223258,1781625043000,-500.0,0.00012236,2]
[425223256,1781625043000,-500.0,0.00012236,2]
[425223243,1781625043000,-500.0,0.00012236,2]
[425223250,1781625043000,-500.0,0.00012236,2]
[425223248,1781625043000,-500.0,0.00012236,2]
[425223241,1781625043000,-500.0,0.00012236,2]
[425223351,1781625044000,-502.0,0.00012236,2]
[425223350,1781625044000,-500.0,0.00012236,2]
[425223355,1781625044000,-25698.72,0.00012621,2]
[425223357,1781625044000,-274.36,0.00012822,2]
[425223363,1781625044000,-274.36,0.00013128,2]
[425223364,1781625044000,-274.36,0.00013433,2]
[425223358,1781625044000,-193.39483347,0.00012866,2]
[425223361,1781625044000,-859.0,0.00013008,2]
[425223354,1781625044000,-274.36,0.00012517,2]
[425223349,1781625044000,-500.0,0.00012236,2]
[425223353,1781625044000,-298.05,0.00012499,2]
[425223365,1781625044000,-150.0,0.00013488,2]
[425223362,1781625044000,-9474.42,0.00013069,2]
[425223360,1781625044000,-357.0,0.00012904,2]
[425223359,1781625044000,-155.83,0.000129,2]
[425223367,1781625044000,-578.54666759,0.00013502,2]
[425223377,1781625044000,-1000.0,0.000136,2]
[425223366,1781625044000,-150.0,0.00013488,2]
[425223368,1781625044000,-150.0,0.00013504,2]
[425223369,1781625044000,-150.0,0.0001352,2]
[425223370,1781625044000,-150.0,0.00013536,2]
[425223371,1781625044000,-150.0,0.00013552,2]
[425223348,1781625044000,-500.0,0.00012236,2]
[425223372,1781625044000,-150.0,0.00013568,2]
[425223356,1781625044000,-1913.03041041,0.00012741,2]
[425223352,1781625044000,-229.74,0.00012329,2]
[425223335,1781625044000,-500.0,0.00012236,2]
[425223346,1781625044000,-500.0,0.00012236,2]
[425223373,1781625044000,-150.0,0.00013584,2]
[425223321,1781625044000,-500.0,0.00012236,2]
[425223331,1781625044000,-500.0,0.00012236,2]
[425223326,1781625044000,-500.0,0.00012236,2]
[425223323,1781625044000,-500.0,0.00012236,2]
[425223325,1781625044000,-500.0,0.00012236,2]
[425223327,1781625044000,-500.0,0.00012236,2]
[425223320,1781625044000,-500.0,0.00012236,2]
[425223324,1781625044000,-500.0,0.00012236,2]
[425223322,1781625044000,-500.0,0.00012236,2]
[425223328,1781625044000,-500.0,0.00012236,2]
[425223330,1781625044000,-500.0,0.00012236,2]
[425223332,1781625044000,-500.0,0.00012236,2]
[425223336,1781625044000,-500.0,0.00012236,2]
[425223337,1781625044000,-500.0,0.00012236,2]
[425223340,1781625044000,-500.0,0.00012236,2]
[425223342,1781625044000,-500.0,0.00012236,2]
[425223334,1781625044000,-500.0,0.00012236,2]
[425223339,1781625044000,-500.0,0.00012236,2]
[425223338,1781625044000,-500.0,0.00012236,2]
[425223341,1781625044000,-500.0,0.00012236,2]
[425223333,1781625044000,-500.0,0.00012236,2]
[425223344,1781625044000,-500.0,0.00012236,2]
[425223343,1781625044000,-500.0,0.00012236,2]
[425223345,1781625044000,-500.0,0.00012236,2]
[425223347,1781625044000,-500.0,0.00012236,2]
[425223376,1781625044000,-310.0,0.000136,2]
[425223329,1781625044000,-500.0,0.00012236,2]
[425223374,1781625044000,-2000.0,0.00013598,2]
[425223402,1781625044000,-713.32,0.00013698,2]
[425223406,1781625044000,-500.0,0.00013698,2]
[425223408,1781625044000,-500.0,0.00013698,2]
[425223403,1781625044000,-713.32,0.00013698,2]
[425223413,1781625044000,-500.0,0.00013698,2]
[425223421,1781625044000,-500.0,0.00013698,2]
[425223420,1781625044000,-500.0,0.00013698,2]
[425223412,1781625044000,-500.0,0.00013698,2]
[425223415,1781625044000,-500.0,0.00013698,2]
[425223422,1781625044000,-500.0,0.00013698,2]
[425223414,1781625044000,-500.0,0.00013698,2]
[425223417,1781625044000,-502.03932463,0.00013698,2]
[425223416,1781625044000,-500.0,0.00013698,2]
[425223419,1781625044000,-500.0,0.00013698,2]
[425223418,1781625044000,-500.0,0.00013698,2]
[425223423,1781625044000,-535.91,0.00013698,2]
[425223424,1781625044000,-500.0,0.00013698,2]
[425223426,1781625044000,-500.0,0.00013698,2]
[425223425,1781625044000,-535.91,0.00013698,2]
[425223432,1781625044000,-464.21453391,0.00013698,2]
[425223430,1781625044000,-500.0,0.00013698,2]
[425223428,1781625044000,-500.0,0.00013698,2]
[425223431,1781625044000,-535.91,0.00013698,2]
[425223429,1781625044000,-535.91,0.00013698,2]
[425223375,1781625044000,-689.0,0.000136,2]
[425223407,1781625044000,-500.0,0.00013698,2]
[425223401,1781625044000,-713.32,0.00013698,2]
[425223427,1781625044000,-535.91,0.00013698,2]
[425223409,1781625044000,-500.0,0.00013698,2]
[425223379,1781625044000,-150.0,0.000136,2]
[425223378,1781625044000,-316.0,0.000136,2]
[425223381,1781625044000,-150.0,0.00013633,2]
[425223385,1781625044000,-150.0,0.00013697,2]
[425223384,1781625044000,-150.0,0.00013681,2]
[425223380,1781625044000,-150.0,0.00013617,2]
[425223383,1781625044000,-150.0,0.00013665,2]
[425223411,1781625044000,-500.0,0.00013698,2]
[425223382,1781625044000,-150.0,0.00013649,2]
[425223387,1781625044000,-500.0,0.00013698,2]
[425223386,1781625044000,-361.095159,0.00013698,2]
[425223390,1781625044000,-713.32,0.00013698,2]
[425223389,1781625044000,-502.40929125,0.00013698,2]
[425223388,1781625044000,-500.0,0.00013698,2]
[425223391,1781625044000,-713.32,0.00013698,2]
[425223404,1781625044000,-509.37999394,0.00013698,2]
[425223392,1781625044000,-713.32,0.00013698,2]
[425223410,1781625044000,-500.0,0.00013698,2]
[425223405,1781625044000,-500.0,0.00013698,2]
[425223396,1781625044000,-713.32,0.00013698,2]
[425223400,1781625044000,-713.32,0.00013698,2]
[425223397,1781625044000,-713.32,0.00013698,2]
[425223393,1781625044000,-713.32,0.00013698,2]
[425223398,1781625044000,-713.32,0.00013698,2]
[425223399,1781625044000,-713.32,0.00013698,2]
[425223394,1781625044000,-713.32,0.00013698,2]
[425223395,1781625044000,-713.32,0.00013698,2]
[425223471,1781625045000,-716.57,0.00013698,2]
[425223470,1781625045000,-716.57,0.00013698,2]
[425223472,1781625045000,-716.57,0.00013698,2]
[425223469,1781625045000,-504.90796761,0.00013698,2]
[425223455,1781625045000,-500.0,0.00013698,2]
[425223456,1781625045000,-500.0,0.00013698,2]
[425223463,1781625045000,-500.0,0.00013698,2]
[425223462,1781625045000,-500.0,0.00013698,2]
[425223467,1781625045000,-500.0,0.00013698,2]
[425223460,1781625045000,-500.0,0.00013698,2]
[425223477,1781625045000,-716.57,0.00013698,2]
[425223484,1781625045000,-500.0,0.00013698,2]
[425223476,1781625045000,-716.57,0.00013698,2]
[425223478,1781625045000,-716.57,0.00013698,2]
[425223473,1781625045000,-716.57,0.00013698,2]
[425223475,1781625045000,-716.57,0.00013698,2]
[425223468,1781625045000,-500.0,0.00013698,2]
[425223479,1781625045000,-716.57,0.00013698,2]
[425223480,1781625045000,-716.57,0.00013698,2]
[425223481,1781625045000,-716.57,0.00013698,2]
[425223486,1781625045000,-500.0,0.00013698,2]
[425223485,1781625045000,-500.0,0.00013698,2]
[425223482,1781625045000,-716.57,0.00013698,2]
[425223464,1781625045000,-500.0,0.00013698,2]
[425223474,1781625045000,-716.57,0.00013698,2]
[425223461,1781625045000,-500.0,0.00013698,2]
[425223447,1781625045000,-500.0,0.00013698,2]
[425223466,1781625045000,-500.0,0.00013698,2]
[425223483,1781625045000,-716.57,0.00013698,2]
[425223433,1781625045000,-535.91,0.00013698,2]
[425223444,1781625045000,-500.0,0.00013698,2]
[425223443,1781625045000,-500.0,0.00013698,2]
[425223434,1781625045000,-535.91,0.00013698,2]
[425223437,1781625045000,-535.91,0.00013698,2]
[425223435,1781625045000,-535.91,0.00013698,2]
[425223441,1781625045000,-535.91,0.00013698,2]
[425223442,1781625045000,-500.0,0.00013698,2]
[425223440,1781625045000,-535.91,0.00013698,2]
[425223439,1781625045000,-535.91,0.00013698,2]
[425223436,1781625045000,-535.91,0.00013698,2]
[425223438,1781625045000,-535.91,0.00013698,2]
[425223445,1781625045000,-500.0,0.00013698,2]
[425223446,1781625045000,-500.0,0.00013698,2]
[425223454,1781625045000,-500.0,0.00013698,2]
[425223448,1781625045000,-500.0,0.00013698,2]
[425223449,1781625045000,-500.0,0.00013698,2]
[425223452,1781625045000,-500.0,0.00013698,2]
[425223453,1781625045000,-500.0,0.00013698,2]
[425223450,1781625045000,-500.0,0.00013698,2]
[425223451,1781625045000,-500.0,0.00013698,2]
[425223457,1781625045000,-500.0,0.00013698,2]
[425223459,1781625045000,-500.0,0.00013698,2]
[425223465,1781625045000,-500.0,0.00013698,2]
[425223458,1781625045000,-500.0,0.00013698,2]
[425223488,1781625045000,-428.86359783,0.00013698,2]
[425223487,1781625045000,-500.0,0.00013698,2]
[425223491,1781625045000,-500.0,0.00013698,2]
[425223521,1781625045000,-150.0,0.0001381,2]
[425223526,1781625045000,-678.85463612,0.00013881,2]
[425223520,1781625045000,-150.0,0.00013794,2]
[425223522,1781625045000,-150.0,0.00013826,2]
[425223516,1781625045000,-934.0,0.00013761,2]
[425223517,1781625045000,-3646.0,0.00013761,2]
[425223528,1781625045000,-1791.50812526,0.00013881,2]
[425223529,1781625045000,-2423.9655,0.00013881,2]
[425223527,1781625045000,-1197.58004533,0.00013881,2]
[425223530,1781625045000,-298.05,0.00013887,2]
[425223531,1781625045000,-150.0,0.00013891,2]
[425223532,1781625045000,-150.0,0.00013907,2]
[425223533,1781625045000,-150.0,0.00013923,2]
[425223537,1781625045000,-150.0,0.00013987,2]
[425223534,1781625045000,-150.0,0.00013939,2]
[425223536,1781625045000,-150.0,0.00013971,2]
[425223538,1781625045000,-535.91,0.00013999,2]
[425223539,1781625045000,-500.0,0.00013999,2]
[425223542,1781625045000,-150.0,0.00014019,2]
[425223543,1781625045000,-150.0,0.00014036,2]
[425223540,1781625045000,-716.57,0.00013999,2]
[425223544,1781625045000,-150.0,0.00014052,2]
[425223545,1781625045000,-150.0,0.00014068,2]
[425223489,1781625045000,-413.37073318,0.00013698,2]
[425223541,1781625045000,-150.0,0.00014003,2]
[425223523,1781625045000,-150.0,0.00013842,2]
[425223519,1781625045000,-150.0,0.00013778,2]
[425223535,1781625045000,-150.0,0.00013955,2]
[425223518,1781625045000,-150.0,0.00013762,2]
[425223494,1781625045000,-500.0,0.00013698,2]
[425223524,1781625045000,-150.0,0.00013858,2]
[425223498,1781625045000,-500.0,0.00013698,2]
[425223495,1781625045000,-500.0,0.00013698,2]
[425223499,1781625045000,-500.0,0.00013698,2]
[425223497,1781625045000,-500.0,0.00013698,2]
[425223492,1781625045000,-500.0,0.00013698,2]
[425223500,1781625045000,-500.0,0.00013698,2]
[425223490,1781625045000,-500.0,0.00013698,2]
[425223493,1781625045000,-500.0,0.00013698,2]
[425223502,1781625045000,-500.0,0.00013698,2]
[425223513,1781625045000,-1275.0,0.00013761,2]
[425223512,1781625045000,-1359.0,0.00013761,2]
[425223496,1781625045000,-179.0,0.00013698,2]
[425223501,1781625045000,-500.0,0.00013698,2]
[425223525,1781625045000,-150.0,0.00013874,2]
[425223514,1781625045000,-1228.0,0.00013761,2]
[425223511,1781625045000,-3558.0,0.00013761,2]
[425223509,1781625045000,-403.39,0.00013734,2]
[425223510,1781625045000,-150.0,0.00013746,2]
[425223515,1781625045000,-383.0,0.00013761,2]
[425223508,1781625045000,-150.0,0.00013729,2]
[425223506,1781625045000,-499.99,0.00013699,2]
[425223503,1781625045000,-500.0,0.00013698,2]
[425223507,1781625045000,-150.0,0.00013713,2]
[425223505,1781625045000,-200.0,0.00013699,2]
[425223584,1781625046000,-500.0,0.0001449,2]
[425223583,1781625046000,-150.0,0.00014487,2]
[425223581,1781625046000,-150.0,0.00014455,2]
[425223591,1781625046000,-500.0,0.0001449,2]
[425223592,1781625046000,-500.0,0.0001449,2]
[425223580,1781625046000,-1234.05750177,0.0001444,2]
[425223582,1781625046000,-150.0,0.00014471,2]
[425223578,1781625046000,-150.0,0.00014422,2]
[425223577,1781625046000,-150.0,0.00014406,2]
[425223579,1781625046000,-150.0,0.00014438,2]
[425223585,1781625046000,-500.0,0.0001449,2]
[425223593,1781625046000,-500.0,0.0001449,2]
[425223605,1781625046000,-500.0,0.0001449,2]
[425223603,1781625046000,-500.0,0.0001449,2]
[425223589,1781625046000,-500.0,0.0001449,2]
[425223586,1781625046000,-500.0,0.0001449,2]
[425223587,1781625046000,-500.0,0.0001449,2]
[425223595,1781625046000,-500.0,0.0001449,2]
[425223597,1781625046000,-500.0,0.0001449,2]
[425223596,1781625046000,-500.0,0.0001449,2]
[425223594,1781625046000,-500.0,0.0001449,2]
[425223599,1781625046000,-500.0,0.0001449,2]
[425223598,1781625046000,-500.0,0.0001449,2]
[425223602,1781625046000,-500.0,0.0001449,2]
[425223604,1781625046000,-500.0,0.0001449,2]
[425223606,1781625046000,-309.06126434,0.0001449,2]
[425223576,1781625046000,-150.0,0.0001439,2]
[425223588,1781625046000,-500.0,0.0001449,2]
[425223575,1781625046000,-150.0,0.00014374,2]
[425223548,1781625046000,-150.0,0.00014116,2]
[425223574,1781625046000,-150.0,0.00014358,2]
[425223600,1781625046000,-500.0,0.0001449,2]
[425223547,1781625046000,-150.0,0.000141,2]
[425223546,1781625046000,-150.0,0.00014084,2]
[425223549,1781625046000,-150.0,0.00014132,2]
[425223559,1781625046000,-150.0,0.00014261,2]
[425223556,1781625046000,-150.0,0.00014213,2]
[425223555,1781625046000,-150.0,0.00014197,2]
[425223551,1781625046000,-713.32,0.00014154,2]
[425223558,1781625046000,-150.0,0.00014245,2]
[425223550,1781625046000,-150.0,0.00014148,2]
[425223557,1781625046000,-150.0,0.00014229,2]
[425223552,1781625046000,-364.26217295,0.00014156,2]
[425223554,1781625046000,-150.0,0.00014181,2]
[425223553,1781625046000,-150.0,0.00014164,2]
[425223560,1781625046000,-150.0,0.00014277,2]
[425223561,1781625046000,-150.0,0.00014293,2]
[425223564,1781625046000,-324.65,0.00014305,2]